Cogmind - Beta 16 @@@ ROGUE MODE // 2025.11.27 @ 14:59:49 Player: Anting Result: Self-destructed Performance ------------- Evolutions (4) 2000 Regions Visited (9) 1800 Robots Destroyed (164) 820 Value Destroyed (6199) 6199 Prototype IDs (23) 460 Alien Tech Used (0) 0 Bonus (2159) 2159 TOTAL SCORE: 13438 Bonus ------- High Alert Combat Kills 700 Follower Combat Kills 499 Entered Garrisons 200 Registered with UFD 300 Met Optimus in HQ 500 Friendly Fire -40 Cogmind --------- Core Integrity 685/850 Matter 71/300 Energy 100/100 System Corruption 8% Temperature Cool (0) Movement Core (100) Ox1 Location -6/Waste Parts ------- > --- POWER (1) -------- (None) > --- PROPULSION (5) --- (None) > --- UTILITY (7) ------ Authchip [Propulsion] Authchip [Propulsion] > --- WEAPON (2) ------- Companion Sword > --- INVENTORY (5) ---- Armored Treads Hardened Light Armor Plating A0-MCA's Component Scanner Light EM Pulse Cannon DRS Beacon (Ready) Peak State ------------ > --- POWER ------------ Nuclear Core > --- PROPULSION ------- Light Treads Light Treads Armored Treads Armored Treads Armored Treads > --- UTILITY ---------- High-capacity Storage Unit Improved Sensor Array Experimental Signal Interpreter Advanced Melee Analysis Suite Hardened Medium Armor Plating Authchip [Propulsion] Authchip [Propulsion] > --- WEAPON ----------- CPS Tube Companion Sword > --- INVENTORY -------- Armored Treads Cooled Aerolev Unit Medium Storage Unit Hardened Light Armor Plating Hacking Suite Hacking Suite A0-MCA's Component Scanner Light EM Pulse Cannon Heavy Plasma Cannon Improved Heavy Machine Gun Rocket Launcher Mini Grenade Launcher DRS Beacon [Rating: 56] Favorites ----------- Power Nuclear Core Engine Ion Engine Power Core Nuclear Core Propulsion Light Treads Treads Light Treads Leg Aluminum Leg Hover Unit Cooled Aerolev Unit Flight Unit Improved Flight Unit Utility High-capacity Storage Unit Device Improved Heat Sink Storage High-capacity Storage Unit Processor Experimental Signal Interpreter Hackware Authchip [Propulsion] Protection Hardened Medium Armor Plating Weapon Autogun Energy Gun Heavy EM Pulse Gun Energy Cannon Light EM Pulse Cannon Ballistic Gun Autogun Launcher Mini Grenade Launcher Special Weapon CPS Tube Slashing Weapon Companion Sword Build | -11 -10 -10 -9 -9 -9 -9 -9 -6 -6 ------- Run | Yrd Mat Min Mat Sto Gar Rec Scr Fac Was Slots Evolved 8 | . . . 2 . . . . 6 . Power . | . . . . . . . . . . Propulsion 3 | . . . 1 . . . . 2 . Utility 5 | . . . 1 . . . . 4 . Weapon . | . . . . . . . . . . Parts Attached 83 | 7 11 5 19 20 11 1 4 5 . Power 10 | 1 2 . 2 1 4 . . . . Engine 8 | 1 2 . 2 . 3 . . . . Core 2 | . . . . 1 1 . . . . Reactor . | . . . . . . . . . . Propulsion 28 | 2 1 2 8 9 4 . . 2 . Treads 22 | . . 2 7 8 3 . . 2 . Leg 4 | 2 1 . . . 1 . . . . Wheel . | . . . . . . . . . . Hover 1 | . . . . 1 . . . . . Flight 1 | . . . 1 . . . . . . Utility 19 | 2 2 1 4 3 2 . 3 2 . Device 3 | 1 . . 1 . . . 1 . . Storage 3 | 1 2 . . . . . . . . Processor 2 | . . . . . . . . 2 . Hackware 3 | . . . . 1 . . 2 . . Protection 8 | . . 1 3 2 2 . . . . Artifact . | . . . . . . . . . . Weapon 26 | 2 6 2 5 7 1 1 1 1 . Energy Gun 6 | . 4 2 . . . . . . . Energy Cannon 2 | . . . 1 1 . . . . . Ballistic Gun 14 | 2 2 . 3 5 1 1 . . . Ballistic Cannon . | . . . . . . . . . . Launcher 2 | . . . 1 1 . . . . . Special Weapon 1 | . . . . . . . . 1 . Impact Weapon . | . . . . . . . . . . Slashing Weapon 1 | . . . . . . . 1 . . Piercing Weapon . | . . . . . . . . . . Special Melee Weapon . | . . . . . . . . . . Unidentified Prototypes 5 | . . . 1 3 . . 1 . . Corrupted Parts 2 | . . . . . . . 2 . . System Corruption 5 | . . . . . . . 5 . . Parts Lost 21 | . 2 2 3 . 6 . . . 8 Power 4 | . 1 . . . 2 . . . 1 Propulsion 3 | . . . . . 2 . . . 1 Utility 7 | . . . 1 . 1 . . . 5 Weapon 7 | . 1 2 2 . 1 . . . 1 Highest Loss Streak 8 | . 2 2 2 . 4 . . . 8 To Critical Strikes . | . . . . . . . . . . Average Backups 17 | 3 13 18 19 19 19 19 16 14 11 Power 1 | . 1 . 1 1 2 3 1 . . Propulsion 4 | 1 4 5 4 4 4 5 3 2 1 Utility 5 | . 4 7 6 6 5 6 6 6 5 Weapon 5 | . 3 6 7 7 6 5 3 5 4 Tool/Special . | . . . . . . . . . . Unused Backups 36 | . 8 . 9 3 . 1 8 . 7 Power 3 | . 1 . 1 . . . 1 . . Propulsion 10 | . 3 . 5 . . . 1 . 1 Utility 13 | . 1 . 1 1 . . 5 . 5 Weapon 9 | . 3 . 2 2 . 1 . . 1 Tool/Special 1 | . . . . . . . 1 . . Average Slot Usage (%) 99 | . 99 100 98 99 99 100 99 91 88 Engine 6 | . 14 14 11 8 7 . . . . Core 4 | . . . . 2 3 11 11 6 5 Treads 26 | . . 19 32 32 32 33 33 32 27 Leg 5 | . 28 8 . . . . . . . Device 11 | . 13 13 10 10 11 11 11 5 4 Storage 11 | . 14 14 11 11 11 11 11 6 4 Protection 8 | . . . 10 11 10 11 11 4 4 Energy Gun 4 | . 12 28 2 . . . . . . Ballistic Gun 18 | . 15 . 19 21 21 22 20 . . Peak Build Rating 56 | 7 12 13 20 24 27 28 34 56 56 Average Rating 20 | 5 9 12 17 19 24 27 27 54 51 On Entrance 21 | . 7 12 12 19 21 27 28 30 56 Avg Prop Armor Cover (%) 8 | . . . . . 8 . . . . Naked Turns . | . . . . . . . . . . Heaviest Build 64 | 12 52 52 61 62 63 63 64 61 64 Greatest Support 100 | 20 20 40 60 60 60 60 60 100 100 Greatest Overweight (x) 2 | 1 2 2 1 1 1 1 1 . . Average Overweight (x) . | . 1 1 . . . 1 . . . Largest Inventory Capacity 20 | 8 20 20 20 20 20 20 20 20 20 Average Capacity 19 | 7 16 20 20 20 20 20 20 20 17 Most Carried 20 | 4 20 20 20 20 20 20 20 19 15 Average Carried 17 | 3 13 18 19 19 19 19 16 14 13 Final Capacity 20 | 8 20 20 20 20 20 20 20 20 5 Final Carried 20 | 4 20 18 20 20 20 20 20 15 5 Class Distribution -------------------- 42% | Mutant 39% | Commander-Mutant 17% | Scavenger-Mutant Dominant Class ---------------- Mutant | -10/Materials Mutant | -10/Mines Mutant | -9/Materials Scavenger-Mutant | -9/Storage Scavenger-Mutant | -9/Garrison Commander-Mutant | -9/Recycling Commander-Mutant | -9/Scraptown Commander-Mutant | -6/Factory Scavenger-Mutant | -6/Waste Resources | -11 -10 -10 -9 -9 -9 -9 -9 -6 -6 ----------- Run | Yrd Mat Min Mat Sto Gar Rec Scr Fac Was Matter Collected 4361 | 310 499 111 1059 1228 980 134 40 . . Remotely . | . . . . . . . . . . Salvage Created 5743 | 147 710 238 1840 1850 926 6 . . 26 Parts 389 | 11 46 11 133 117 70 1 . . . Haulers Intercepted 14 | . 2 . 6 6 . . . . . Recyclers Shooed 8 | . 1 . 4 1 . 2 . . . Parts Field Recycled . | . . . . . . . . . . Retrieved Matter . | . . . . . . . . . . Parts Self-Destructed . | . . . . . . . . . . Prevented . | . . . . . . . . . . Parts Restored . | . . . . . . . . . . Kills | -11 -10 -10 -9 -9 -9 -9 -9 -6 -6 ------- Run | Yrd Mat Min Mat Sto Gar Rec Scr Fac Was Combat Hostiles Destroyed 112 | . 13 5 30 35 29 . . . . Guns 90 | . 13 4 23 28 22 . . . . AOE 21 | . . . 7 7 7 . . . . Classes Destroyed 15 | 2 6 . 3 2 1 . . . 1 Worker 5 | . 2 . 1 2 . . . . . Builder 6 | . . . 4 1 . 1 . . . Tunneler 5 | 3 . 1 1 . . . . . . Hauler 14 | . 2 . 6 6 . . . . . Recycler 7 | 1 . . 4 2 . . . . . Operator 4 | . 2 . . 2 . . . . . Watcher 10 | . 2 . 5 2 1 . . . . Swarmer 30 | . 3 . 10 6 11 . . . . Grunt 45 | . 10 4 10 15 6 . . . . Brawler 3 | . . . 1 1 1 . . . . Duelist 6 | . . . . 1 5 . . . . Protector 1 | . . . . 1 . . . . . Sentry 23 | . . . 9 11 3 . . . . Hunter 1 | . . . . . . . . . 1 Programmer 3 | . . . . . 3 . . . . Best Kill Streak 6 | 3 3 2 5 6 5 1 . . . Combat Bots Only 5 | . 3 2 3 5 4 . . . . Max Kills in Single Turn 5 | 1 1 1 3 5 3 1 . . 1 Gunslinging 1 | . . . . . 1 . . . . Exploded 3 | . . . 3 3 3 . . . . Melee . | . . . . . . . . . . Uniques/NPCs Destroyed 1 | . . 1 . . . . . . . YI-UF0 (-10/Mines) Combat | -11 -10 -10 -9 -9 -9 -9 -9 -6 -6 -------- Run | Yrd Mat Min Mat Sto Gar Rec Scr Fac Was Hostile Shots Fired 393 | . 57 21 128 105 73 2 . . 7 Missed 97 | . 10 6 34 31 14 1 . . 1 Hits 296 | . 47 15 94 74 59 1 . . 6 Melee 28 | . . . . 1 21 . . . 6 Projectile 268 | . 47 15 94 73 38 1 . . . AOE 13 | . . 13 . . . . . . . Critical Strikes 15 | . 4 . 3 2 3 1 . . 2 Part Disruptions 2 | . . . . . 2 . . . . Damage Taken 4915 | . 570 456 1267 975 1202 14 . . 431 Core 723 | . 107 83 181 76 97 14 . . 165 Absorbed by Shields . | . . . . . . . . . . Regen/Repaired (Parts) 412 | . 82 . 284 46 . . . . . Core Remaining (%) 44 | 100 . 24 . . . . 8 . . Volleys Fired 464 | 10 85 12 120 106 119 1 . . 11 Largest 2 | 2 2 2 2 2 2 2 . . 1 Hottest 101 | 40 90 90 101 56 46 38 . . 33 Shots Fired 846 | 20 169 24 237 202 181 3 . . 10 Gun 809 | 20 169 24 232 192 169 3 . . . Cannon 5 | . . . 3 2 . . . . . Launcher 32 | . . . 2 8 12 . . . 10 Special . | . . . . . . . . . . Kinetic 731 | 20 131 . 216 192 169 3 . . . Thermal 6 | . 6 . . . . . . . . Explosive 32 | . . . 2 8 12 . . . 10 Electromagnetic 77 | . 32 24 19 2 . . . . . Robot Hit Streak 32 | 4 9 9 32 18 12 9 . . 4 Robot Miss Streak 6 | 1 6 3 3 4 4 . . . 1 Penetration Max . | . . . . . . . . . . Secondary Targets 11 | . 1 1 1 2 6 . . . . Max Gunslinging Chain 1 | . 1 1 1 1 1 . . . . Shots Hit Robots 520 | 13 98 17 157 141 86 3 . . 5 Core Hits 260 | 7 50 8 72 74 41 5 . . 3 Critical Kills 4 | . 2 . 1 1 . . . . . Critical Parts Destroyed 2 | 1 . . 1 . . . . . . Critical Strikes 8 | 1 3 1 2 1 . . . . . Burn 1 | . 1 . . . . . . . . Destroy 6 | 1 2 . 2 1 . . . . . Corrupt 1 | . . 1 . . . . . . . Melee Attacks . | . . . . . . . . . . Impact . | . . . . . . . . . . Slashing . | . . . . . . . . . . Piercing . | . . . . . . . . . . Sneak Attacks . | . . . . . . . . . . Combat Hostiles . | . . . . . . . . . . Follow-up Attacks . | . . . . . . . . . . Damage Inflicted 10807 | 130 1149 287 2981 3112 1869 77 . . 1202 Guns 7712 | 130 1122 268 2347 2207 1590 48 . . . Cannons 54 | . . . 54 . . . . . . Explosions 2823 | . . . 479 863 279 . . . 1202 Melee . | . . . . . . . . . . Ramming 218 | . 27 19 101 42 . 29 . . . Kinetic 6904 | 130 730 . 2199 2207 1590 48 . . . Thermal 174 | . 75 . 99 . . . . . . Explosive 2724 | . . . 380 863 279 . . . 1202 Electromagnetic 787 | . 317 268 202 . . . . . . Impact . | . . . . . . . . . . Slashing . | . . . . . . . . . . Piercing . | . . . . . . . . . . Highest Corruption 8 | . . . . . 3 3 5 . 8 Average Corruption 2 | . . . . . 2 3 4 . 8 Corruption Purged . | . . . . . . . . . . Corruption Blocked . | . . . . . . . . . . Effects 58 | . . . . . 18 38 . . 2 Message Errors 18 | . . . . . 3 15 . . . Matter Fused 15 | . . . . . 6 9 . . . Heat Flow Errors 5 | . . . . . 1 3 . . 1 Energy Discharges 3 | . . . . . 1 2 . . . Parts Fused 2 | . . . . . 1 1 . . . Data Loss (minor) 7 | . . . . . 3 4 . . . Data Loss (major) 4 | . . . . . 2 2 . . . Misfires 1 | . . . . . . 1 . . . Alerts 1 | . . . . . . 1 . . . Weapon Failures 2 | . . . . . 1 . . . 1 Overload Shots . | . . . . . . . . . . Overflow Damage 73 | . . . 28 20 9 . . . 16 Projectiles . | . . . . . . . . . . Explosions 73 | . . . 28 20 9 . . . 16 Melee . | . . . . . . . . . . Knockbacks 3 | . 1 . 2 . . . . . . Impact 3 | . 1 . 2 . . . . . . Kinetic . | . . . . . . . . . . Secondary . | . . . . . . . . . . Self-Inflicted Damage 249 | . . . 24 . 56 . . . 169 Shots 9 | . . . 1 . 2 . . . 6 Rammed 27 | . . 2 13 7 . 5 . . . Targets Rammed 38 | . 6 4 14 8 . 6 . . . Kicked 7 | . 6 1 . . . . . . . Crushed 4 | . . 1 1 1 . 1 . . . Highest Temperature 261 | . 213 180 215 37 198 261 . . 206 Average Temperature 53 | . 47 81 43 9 85 120 . . 105 Received Heat Transfer 1293 | . 333 42 420 378 93 27 . . . Effects 2 | . . . . . . 1 . . 1 Energy Bleed 1 | . . . . . . 1 . . . Interference 1 | . . . . . . . . . 1 Siege Activations . | . . . . . . . . . . Martial Activations . | . . . . . . . . . . Shielding Activations . | . . . . . . . . . . Robots Disrupted . | . . . . . . . . . . Combat Hostiles . | . . . . . . . . . . Robots Corrupted 1 | . . 1 . . . . . . . Combat Hostiles 1 | . . 1 . . . . . . . Parts Fried 4 | . 1 1 2 . . . . . . Impact Corruptions . | . . . . . . . . . . Robots Melted . | . . . . . . . . . . Combat Hostiles . | . . . . . . . . . . Parts Melted 2 | . . 1 1 . . . . . . Heat Transferred 396 | . 296 . 100 . . . . . . Parts Sabotaged . | . . . . . . . . . . Parts Stolen . | . . . . . . . . . . Parts Stripped . | . . . . . . . . . . Power Chain Reactions 1 | . . . 1 . . . . . . Alert | -11 -10 -10 -9 -9 -9 -9 -9 -6 -6 ------- Run | Yrd Mat Min Mat Sto Gar Rec Scr Fac Was Maximum Alert Level 5 | . . . 2 3 5 3 . . . Low Security (%) 44 | 100 100 100 28 10 . . . 100 100 Level 1 18 | . . . 51 39 . . . . . Level 2 14 | . . . 20 12 13 44 . . . Level 3 16 | . . . . 36 32 55 . . . Level 4 2 | . . . . . 17 . . . . Level 5 4 | . . . . . 36 . . . . High Security . | . . . . . . . . . . Max Security . | . . . . . . . . . . Peak Influence 2147 | 15 143 76 473 868 2147 995 . . 17 Initial 966 | . . 35 . 187 430 966 . . . Average 410 | 3 44 10 263 511 1325 764 . . 2 Influence Increases 5211 | 20 533 123 1133 1286 1817 269 . . 30 Destroy 0b10 Robot/C 2560 | . 260 80 600 800 760 60 . . . Destroy 0b10 Robot/NC 260 | 20 40 5 105 80 5 5 . . . Destroy Leader 506 | . 68 20 182 216 20 . . . . Allied During Kill 140 | . . 3 . 56 42 39 . . . Successful Hack 104 | . 14 . 33 28 14 15 . . . Select Force Hacks 240 | . 60 . 30 . . 150 . . . Disable Machine 105 | . . 15 45 15 30 . . . . Anti-Garrison Action 750 | . . . . . 750 . . . . Destroy Structure 321 | . 1 . 18 76 196 . . . 30 Lose Combat Pursuer 225 | . 90 . 120 15 . . . . . Influence Decreases 5211 | 20 442 214 688 1068 333 1805 611 . 30 Entered New Map 2339 | . . 56 . 258 233 1181 611 . . Time Decay 2370 | 20 285 158 653 620 . 624 . . 10 Lost Part 125 | . 20 . 25 . 60 . . . 20 Lost Ally 90 | . . . 10 40 40 . . . . Purge Threat 287 | . 137 . . 150 . . . . . Squads Dispatched 16 | . 5 . 2 9 . . . . . Investigation 5 | . 3 . 2 . . . . . . Extermination . | . . . . . . . . . . Reinforcement 4 | . 2 . . 2 . . . . . Assault 4 | . . . . 4 . . . . . Garrison 3 | . . . . 3 . . . . . Intercept . | . . . . . . . . . . Searches Triggered . | . . . . . . . . . . Construction Impeded . | . . . . . . . . . . Haulers Reinforced . | . . . . . . . . . . Active Scanning Responses . | . . . . . . . . . . Cargo Convoy Interrupts . | . . . . . . . . . . Stealth | -11 -10 -10 -9 -9 -9 -9 -9 -6 -6 --------- Run | Yrd Mat Min Mat Sto Gar Rec Scr Fac Was Distress Signals 10 | . 4 . 4 2 . . . . . Communications Jammed . | . . . . . . . . . . Distress Signals . | . . . . . . . . . . Times Spotted 182 | . 41 5 48 47 35 1 . . 5 Peak Tracking Total 7 | . 5 2 6 7 4 1 . . 5 Tactical Retreats 10 | . 4 . 5 1 . . . . . Traps | -11 -10 -10 -9 -9 -9 -9 -9 -6 -6 ------- Run | Yrd Mat Min Mat Sto Gar Rec Scr Fac Was Traps Triggered 4 | . . . 2 . 1 . . 1 . Indirectly . | . . . . . . . . . . Trap Hack Attempts . | . . . . . . . . . . Triggered . | . . . . . . . . . . Disarmed 1 | . . . . 1 . . . . . Reprogrammed . | . . . . . . . . . . Reused . | . . . . . . . . . . Traps Extracted . | . . . . . . . . . . Installed . | . . . . . . . . . . Triggered . | . . . . . . . . . . Machines | -11 -10 -10 -9 -9 -9 -9 -9 -6 -6 ---------- Run | Yrd Mat Min Mat Sto Gar Rec Scr Fac Was Machines Disabled 19 | . . 1 3 1 14 . . . . Max in Single Turn 1 | . . 1 1 1 1 . . . . Garrison Relay 10 | . . . . . 10 . . . . Phase Generator 1 | . . . . . 1 . . . . Machines Repaired . | . . . . . . . . . . Machines Dismantled . | . . . . . . . . . . Machines Sabotaged . | . . . . . . . . . . Overloaded Fab Kills . | . . . . . . . . . . Hacking | -11 -10 -10 -9 -9 -9 -9 -9 -6 -6 --------- Run | Yrd Mat Min Mat Sto Gar Rec Scr Fac Was Machines Accessed 48 | . 9 . 11 13 3 10 2 . . Terminals 32 | . 6 . 7 11 3 5 . . . Fabricators . | . . . . . . . . . . Repair Stations 4 | . 1 . 2 1 . . . . . Recycling Units 8 | . 2 . 1 . . 5 . . . Scanalyzers 1 | . . . 1 . . . . . . Garrison Access 1 | . . . . 1 . . . . . Total Hacks 114 | . 24 . 34 25 6 23 2 . . Successful 78 | . 16 . 24 18 3 15 2 . . Failed 35 | . 8 . 9 7 3 8 . . . Catastrophic 2 | . 1 . 1 . . . . . . Database Lockouts 1 | . . . 1 . . . . . . Manual 66 | . 17 . 16 14 1 18 . . . Terminals 79 | . 17 . 18 21 6 17 . . . Fabricators . | . . . . . . . . . . Repair Stations 19 | . 5 . 11 3 . . . . . Recycling Units 9 | . 2 . 1 . . 6 . . . Scanalyzers 4 | . . . 4 . . . . . . Garrison Access 1 | . . . . 1 . . . . . Terminal Hacks 20 | . 3 . 2 8 2 3 2 . . Part Schematic 2 | . . . . . . 2 . . . Robot Schematic 1 | . 1 . . . . . . . . Robot Analysis 1 | . . . . . . 1 . . . Prototype ID Bank 3 | . 1 . 2 . . . . . . Open Door 6 | . . . . 5 . . 1 . . Emergency Access Points 1 | . . . . . 1 . . . . Unreport Threat 2 | . 1 . . 1 . . . . . Locate Traps 1 | . . . . 1 . . . . . Disarm Traps 1 | . . . . 1 . . . . . Garrison Registry 1 | . . . . . 1 . . . . Proto ID Catalog 1 | . . . . . . . 1 . . Fabricator Hacks . | . . . . . . . . . . Repair Station Hacks 17 | . 5 . 10 2 . . . . . Scan Component 9 | . 3 . 5 1 . . . . . Repair 8 | . 2 . 5 1 . . . . . Recycling Unit Hacks . | . . . . . . . . . . Scanalyzer 3 | . . . 3 . . . . . . Retrieve Study 3 | . . . 3 . . . . . . Garrison Access Hacks 1 | . . . . 1 . . . . . Unlock Access 1 | . . . . 1 . . . . . Unauthorized Hacks 37 | . 8 . 9 7 1 12 . . . Terminals 29 | . 6 . 8 7 1 7 . . . Assimilate 1 | . . . 1 . . . . . . Botnet 7 | . 1 . 1 2 1 2 . . . Operators 1 | . . . 1 . . . . . . Skim 20 | . 5 . 5 5 . 5 . . . Fabricators . | . . . . . . . . . . Repair Stations . | . . . . . . . . . . Recycling Units 8 | . 2 . 1 . . 5 . . . Tunnel 8 | . 2 . 1 . . 5 . . . Scanalyzers . | . . . . . . . . . . Garrison Access . | . . . . . . . . . . Data Cores Recovered . | . . . . . . . . . . Used . | . . . . . . . . . . Hacking Detections 30 | . 7 . 9 7 2 5 . . . Full Trace Events . | . . . . . . . . . . Feedback Events . | . . . . . . . . . . Feedback Blocked . | . . . . . . . . . . Robot Schematics Acquired 1 | . 1 . . . . . . . . Robots Built . | . . . . . . . . . . Authchips . | . . . . . . . . . . Time . | . . . . . . . . . . Total Robot Build Rating . | . . . . . . . . . . Part Schematics Acquired 2 | . . . . . . 2 . . . Parts Built . | . . . . . . . . . . Authchips . | . . . . . . . . . . Time . | . . . . . . . . . . Total Part Build Rating . | . . . . . . . . . . Part Studies Acquired 3 | . . . 3 . . . . . . Parts Repaired 8 | . 2 . 5 1 . . . . . Time 224 | . 52 . 146 26 . . . . . Parts Recycled . | . . . . . . . . . . Recycled Matter . | . . . . . . . . . . Retrieved Matter . | . . . . . . . . . . Retrieved Components . | . . . . . . . . . . Parts Scanalyzed . | . . . . . . . . . . Part Schematics Acquired . | . . . . . . . . . . Parts Damaged . | . . . . . . . . . . Bothacking | -11 -10 -10 -9 -9 -9 -9 -9 -6 -6 ------------ Run | Yrd Mat Min Mat Sto Gar Rec Scr Fac Was Used RIF Installer . | . . . . . . . . . . Robots Hacked . | . . . . . . . . . . Non-combat . | . . . . . . . . . . Combat . | . . . . . . . . . . Robot Hacks Applied . | . . . . . . . . . . Relay Couplers Released 40 | . . . . . 40 . . . . Machine Destruction 40 | . . . . . 40 . . . . Fabnet Peak Effective % . | . . . . . . . . . . Robots Rewired 11 | . . . . . 11 . . . . Allies Hacked 1 | . . . . . 1 . . . . Hacks Repelled . | . . . . . . . . . . Allies | -11 -10 -10 -9 -9 -9 -9 -9 -6 -6 -------- Run | Yrd Mat Min Mat Sto Gar Rec Scr Fac Was Total Allies 17 | . . 1 1 2 13 . . . . Largest Group 11 | . . 1 1 2 11 11 10 10 1 Highest-Rated Group 143 | . . 31 10 62 143 143 133 133 21 Highest-Rated Ally 31 | . . 31 10 31 31 21 21 21 21 Initial Warlord ECA Mod 17 | . . . . . . 17 17 . . Total Orders 4 | . . . . . 2 . 2 . . STAY 2 | . . . . . 1 . 1 . . FOLLOW 2 | . . . . . 1 . 1 . . Ally Attacks 85 | . . 5 . 30 30 17 . . 3 Total Damage 1316 | . . 84 . 422 400 328 . . 82 Kills 19 | . . . . 6 9 4 . . . Allies Corrupted 2 | . . . . 1 1 . . . . Allies Melted . | . . . . . . . . . . Intel | -11 -10 -10 -9 -9 -9 -9 -9 -6 -6 ------- Run | Yrd Mat Min Mat Sto Gar Rec Scr Fac Was Active Infowar (turns) 8405 | 29 3785 1496 2688 . . . 278 61 68 Sensors 407 | . . . . . . . 278 61 68 Seismic 7998 | 29 3785 1496 2688 . . . . . . Robot Analysis Total 1 | . . . . . . 1 . . . Derelict Logs Recovered 1 | . . 1 . . . . . . . Drone Launches . | . . . . . . . . . . Drone Recoveries . | . . . . . . . . . . Exploration | -11 -10 -10 -9 -9 -9 -9 -9 -6 -6 ------------- Run | Yrd Mat Min Mat Sto Gar Rec Scr Fac Was Turns Passed 21560 | 114 3811 1515 3887 2096 1875 2136 5982 63 81 Spaces Moved 7870 | 61 1074 595 1150 870 717 852 2480 33 38 Core 4 | 4 . . . . . . . . . Treads 6561 | . . 429 1150 870 717 852 2480 33 30 Legs 1297 | 57 1074 166 . . . . . . . Wheels . | . . . . . . . . . . Hover 8 | . . . . . . . . . 8 Flight . | . . . . . . . . . . Fastest Speed 50 | 50 120 240 160 160 163 243 163 166 50 Average Speed 218 | 117 217 245 205 173 193 243 238 166 141 Slowest Speed 260 | 120 260 260 240 240 245 243 243 166 166 Overloaded Moves . | . . . . . . . . . . Propulsion Burnouts . | . . . . . . . . . . Robots Hopped . | . . . . . . . . . . Potential Cave-ins . | . . . . . . . . . . Cave-ins Triggered . | . . . . . . . . . . Exploration Rate (%) 69 | 4 94 96 94 92 90 97 84 1 40 Regions Visited 9 Branch Regions 4 Pre-discovered Areas 17 | . 4 1 3 . . 9 . . . Known Exits Taken 5 | . 1 1 1 1 . 1 . . . Unknown Exits Taken 2 | 1 . . . . . . 1 . . Scrap Searched 7 | . . 1 . . . . 6 . . Spaces Dug 54 | . . . . 26 20 . . . 8 Terrain Destroyed 322 | . . . 24 75 168 . . . 55 Melee . | . . . . . . . . . . Projectile 1 | . . . . . 1 . . . . AOE 321 | . . . 24 75 167 . . . 55 Terrain Rammed . | . . . . . . . . . . Walls Destroyed . | . . . . . . . . . . Machines Disabled . | . . . . . . . . . . Actions | -11 -10 -10 -9 -9 -9 -9 -9 -6 -6 --------- Run | Yrd Mat Min Mat Sto Gar Rec Scr Fac Was Total 11474 | 81 2393 618 2475 1290 1047 909 2567 42 52 Wait 2691 | . 1174 . 1113 243 91 44 26 . . Move 7862 | 60 1073 594 1149 869 716 851 2479 33 38 Hop . | . . . . . . . . . . Pick Up 89 | 4 26 . 24 5 . 2 26 2 . Fast Attach 33 | 7 5 1 7 6 5 . 1 . 1 Attach 25 | . 2 2 6 2 4 . 2 7 . Detach 4 | . 1 . 1 . . . 2 . . Swap 73 | . 6 4 14 28 14 2 3 . 2 Drop 99 | . 15 1 27 23 2 3 28 . . Fire 464 | 10 85 12 120 106 119 1 . . 11 Melee . | . . . . . . . . . . Ram . | . . . . . . . . . . Kick 7 | . 6 1 . . . . . . . Crush 31 | . . 3 14 8 . 6 . . . Escape Stasis 2 | . . . . . 2 . . . . Rewire 94 | . . . . . 94 . . . . Trap . | . . . . . . . . . . Miscellaneous . | . . . . . . . . . . Route ------- -11/Scrapyard -10/Materials (discovered 6 exits: *Mat x3 / *Min x2 / [*Sub]) -10/Mines (discovered 2 exits: *Mat x2) -9/Materials (discovered 6 exits: *Mat x3 / [*Min] / *Sto x2) -9/Storage (discovered 3 exits: *Mat / Rec / Gar) -9/Garrison (discovered 3 exits: *Rec x3) -9/Recycling (discovered 2 exits: [*Fac] / *Scr) -9/Scraptown (discovered 2 exits: [*Fac x2]) -6/Factory -6/Waste History --------- Turn | Location | Event 10 | -11/Scrapyard | Discovered new exit (range 15) 115 | -11/Scrapyard | Entered Materials 300 | -10/Materials | Build established: Mutant 345 | -10/Materials | Discovered new exit (range 9) 1587 | -10/Materials | Discovered new exit (range 16) 1689 | -10/Materials | Discovered new exit (range 13) 1988 | -10/Materials | Repaired Lgt. Assault Rifle 2321 | -10/Materials | Discovered new exit (range 6) 2740 | -10/Materials | Learned Storage trap positions 2821 | -10/Materials | Learned Storage emergency access door positions 2893 | -10/Materials | Identified exit to Materials 2954 | -10/Materials | Identified exit to Mines 3045 | -10/Materials | Learned Storage emergency access door positions 3097 | -10/Materials | Learned location of Storage (-9) 3656 | -10/Materials | Repaired Seismic Detector 3926 | -10/Materials | Entered Mines 4155 | -10/Mines | Learned location of Zion (-6) 4369 | -10/Mines | Core integrity fell below 50% 4379 | -10/Mines | Destroyed YI-UF0 4455 | -10/Mines | Discovered exit to Materials (range 15) 4470 | -10/Mines | Received a Mining Laser from a helpful Derelict 4834 | -10/Mines | Discovered exit to Materials (range 14) 5441 | -10/Mines | Entered Materials 5441 | -9/Materials | Evolved 2 slots: Propulsion x1, Utility x1 5499 | -9/Materials | Repaired Corrupted Lgt. Treads 5526 | -9/Materials | Repaired Lgt. Treads 5554 | -9/Materials | Repaired Lgt. Treads 5941 | -9/Materials | Central database locked down 6481 | -9/Materials | Discovered new exit (range 13) 6846 | -9/Materials | Discovered new exit (range 9) 7244 | -9/Materials | Discovered new exit (range 4) 7383 | -9/Materials | Learned 4 Recycling zone layouts 7495 | -9/Materials | Identified exit to Storage 7537 | -9/Materials | Learned Storage terminal intel 7596 | -9/Materials | Learned Storage trap positions 7613 | -9/Materials | Learned 2 Storage zone layouts 7639 | -9/Materials | Identified exit to Materials 7721 | -9/Materials | Learned location of 1 exit from Recycling 8457 | -9/Materials | Build established: Scavenger-Mutant 8487 | -9/Materials | Repaired Autogun+ 8514 | -9/Materials | Repaired Lgt. Treads 8929 | -9/Materials | Build established: Mutant 9328 | -9/Materials | Entered Storage 9329 | -9/Storage | Identified exit to Recycling 9331 | -9/Storage | Loaded intel: 27 trap records 9332 | -9/Storage | Loaded intel: 16 terminal locations 9332 | -9/Storage | Identified exit to Garrison 9568 | -9/Storage | Garrison activated, responded to threat 9751 | -9/Storage | Core integrity fell below 50% 9887 | -9/Storage | Build established: Scavenger-Mutant 10359 | -9/Storage | Met a pair of Derelict thieves 10850 | -9/Storage | Repaired Lgt. Treads 10928 | -9/Storage | First assault squad dispatched 11399 | -9/Storage | Learned location of 1 exit from Storage 11424 | -9/Storage | Entered Garrison 11500 | -9/Garrison | Lost 4 parts (1p1n1u1w) 11575 | -9/Garrison | Triggered checkpoint 11628 | -9/Garrison | Garrison Relay disabled 11674 | -9/Garrison | Triggered checkpoint 11711 | -9/Garrison | Rescued a captive Derelict 11711 | -9/Garrison | Rescued a captive Derelict 11738 | -9/Garrison | Garrison Relay disabled 11865 | -9/Garrison | Triggered checkpoint 11902 | -9/Garrison | Triggered checkpoint 11970 | -9/Garrison | Discovered exit to Recycling (range 4) 11998 | -9/Garrison | Triggered checkpoint 12025 | -9/Garrison | Garrison Relay disabled 12277 | -9/Garrison | Discovered exit to Recycling (range 9) 12298 | -9/Garrison | Garrison Relay disabled 12310 | -9/Garrison | Garrison Relay disabled 12313 | -9/Garrison | Garrison Relay disabled 12327 | -9/Garrison | Garrison Relay disabled 12386 | -9/Garrison | Triggered checkpoint 12414 | -9/Garrison | Garrison Relay disabled 12440 | -9/Garrison | Discovered exit to Recycling (range 47) 12440 | -9/Garrison | Discovered exit to Recycling (range 26) 12440 | -9/Garrison | Discovered exit to Recycling (range 30) 12594 | -9/Garrison | Core integrity fell below 20% 12664 | -9/Garrison | Triggered checkpoint 12668 | -9/Garrison | Triggered checkpoint 12671 | -9/Garrison | Garrison Relay disabled 12710 | -9/Garrison | Garrison Relay disabled 13125 | -9/Garrison | Phase Generator disabled 13223 | -9/Garrison | Build established: Commander-Mutant 13299 | -9/Garrison | Entered Recycling 13299 | -9/Recycling | Accompanied by 11 allies 13300 | -9/Recycling | Identified exit to Scraptown 14184 | -9/Recycling | Scanned before Scraplab entrance 14546 | -9/Recycling | Discovered new exit (range 5) 14947 | -9/Recycling | Learned 2 Materials zone layouts 14957 | -9/Recycling | Learned Materials security intel 14959 | -9/Recycling | Learned Materials security intel 14961 | -9/Recycling | Learned Materials stockpile data 15015 | -9/Recycling | Learned Materials stockpile data 15374 | -9/Recycling | Entered Scraplab 15435 | -9/Recycling | Entered Scraptown 15435 | -9/Scraptown | Accompanied by 10 allies 15435 | -9/Scraptown | System corruption cleaned by C-Scrubber 16143 | -9/Scraptown | Discovered new exit (range 11) 16964 | -9/Scraptown | Visited Symbiants 17013 | -9/Scraptown | Visited Shadow of the Wyrm 17064 | -9/Scraptown | Visited TADAMA 17154 | -9/Scraptown | Visited Cave Peace 17209 | -9/Scraptown | Visited Bundlers 17375 | -9/Scraptown | Visited Fellowship of the Rings 17912 | -9/Scraptown | Visited UFD Registry 17912 | -9/Scraptown | Registered with UFD as "Zerorider" 17997 | -9/Scraptown | Visited Junk Cannon Lab 18157 | -9/Scraptown | Visited Science Guys 18262 | -9/Scraptown | Visited Derelict Rescue Squad 18296 | -9/Scraptown | Visited Junk Repository 18519 | -9/Scraptown | Visited Infowarlord's Domain 18556 | -9/Scraptown | Visited LU-1G1's Boring Crew 18599 | -9/Scraptown | Visited Sword Containment 18638 | -9/Scraptown | Visited A0-MCA Data Center 18677 | -9/Scraptown | Visited Scrap Suit Storage 18912 | -9/Scraptown | Found DRS Beacon 19041 | -9/Scraptown | Given a B rating by A0-MCA 20665 | -9/Scraptown | Found A0-MCA's Component Scanner 21013 | -9/Scraptown | Discovered new exit (range 3) 21191 | -9/Scraptown | Found Exp. Signal Interpreter 21249 | -9/Scraptown | Found Prototype Slashing Weapon 21249 | -9/Scraptown | Identified Companion Sword 21326 | -9/Scraptown | Met Optimus 21326 | -9/Scraptown | Accepted into 0bPrime 21416 | -9/Scraptown | System corruption cleaned by C-Scrubber 21417 | -9/Scraptown | Entered Factory 21417 | -6/Factory | Accompanied by 10 allies 21417 | -6/Factory | Evolved 6 slots: Propulsion x2, Utility x4 21480 | -6/Factory | Sucked down chute 21480 | -6/Factory | Entered Waste 21495 | -6/Waste | EMP discharged 21523 | -6/Waste | Spotted C-40 Crusher 21529 | -6/Waste | Spotted C-40 Crusher 21540 | -6/Waste | Spotted C-40 Crusher 21545 | -6/Waste | Crushed by Compactor (1 part destroyed, 1 dropped) 21548 | -6/Waste | Spotted C-40 Crusher 21548 | -6/Waste | Crushed by Compactor (1 part destroyed, 1 dropped) 21549 | -6/Waste | Spotted C-40 Crusher 21551 | -6/Waste | Crushed by Compactor (1 part destroyed, 1 dropped) 21554 | -6/Waste | Crushed by Compactor (1 part destroyed, 1 dropped) 21555 | -6/Waste | Crushed by Compactor (1 part destroyed) 21561 | -6/Waste | Crushed by Compactor (0 parts destroyed, 1 dropped) 21561 | -6/Waste | Self-destructed Last Messages --------------- 21548_ Arm. Treads crushed. 21551_ Hvy. Plasma Cannon crushed. 21551_ Lgt. Treads crushed. 21551_ Arm. Treads crushed. 21552_ Mni. Grenade Launcher destroyed. 21552_ Destroyed Mni. Grenade Launcher. 21554_ Nuclear Core crushed. 21554_ Lgt. Treads crushed. 21554_ Adv. Melee Analysis Suite destroyed. 21555_ Imp. Heavy Machine Gun crushed. 21555_ Med. Storage Unit crushed. 21555_ Exp. Signal Interpreter crushed. 21555_ Acquired Cld. Aerolev Unit. 21557_ The unstable cave ceiling collapses. 21557_ Lgt. Treads crushed. 21559_ The unstable cave ceiling collapses. 21559_ Arm. Treads crushed. 21560_ The unstable cave ceiling collapses. 21561_ Cld. Aerolev Unit crushed. 21561_ Rocket Launcher+ crushed. Map ----- +----------------------------------------------------+ | ?????????????????????????????????????????????????? | | ?????????????????????????????????????????????????? | | ?????????????????????????????????????????????????? | | ?????????????????????????????????????????????????? | | ?????????????????????????????????????????????????? | | ?????????????????????????????????????????????????? | | ?????????????????????????????????????????????????? | | ?????????????????????????????????????????????????? | | ?????????????????????????????????????????????????? | | ?????????????????????????????????????????????????? | | ?????????????????????##########??????????????????? | | ?????????????????????# #??????????????????? | | ?????????????????????# #??????????????????? | | ?????????????????????# #??????????????????? | | ?????????????????????# #??????????????????? | | ?????????????????????# #??????????????????? | | ?????????????????????# #??????????????????? | | ?????????????????????? #??????????????????? | | ???????????######?????? ???????????????????? | | ???????????# #??????# #????????????????????? | | ???????????# #??##### #????????????????????? | | ???????????# #### ## #????????????????????? | | ???????????# ## ###??????????????????? | | ?????????### # CC #??????????????????? | | ?????????# = CCCC #??????????????????? | | ?????????# CC@ #??????????????????? | | ?????????# CC #??????????????????? | | ?????????# b CC #??????????????????? | | ?????????### ## ## CC #??????????????????? | | #########??# ### # CC #??????????????????? | | #??# #?## ##??????????????????? | | #??# #??### #??????????????????? | | #### #????# ##??????????????????? | | #????## CC ???????????????????? | | #?????## CC ??????????????????? | | #??????# ?????????????????? | | = #??????# ?????????????????? | | #### #??????# #####????????????????? | | #??# #??????? #????????????????????? | | #??# #??????? #????????????????????? | | #########??# #??????? ?????????????????????? | | ???????????# #????????????????????????????????? | | ??????????? ????????????????????????????????? | | ??????????? ???????????????????????????????? | | ??????????? ??????????????????????????????? | | ??????????? ??????????????????????????????? | | ???????????# ###??????????????????????????????? | | ???????????? #????????????????????????????????? | | ???????????? ??????????????????????????????????? | | ?????????????????????????????????????????????????? | +----------------------------------------------------+ Best States ------------- Heat Dissipation 42 Energy Generation 14 Energy Capacity 275 Matter Stores 300 Matter Capacity 300 Sight Range 16 Robot Scan Range 15 Terrain Scan Density 10 Armor Coverage 225 Evasion (%) 55 Melee Accuracy 8 Recoil Reduction 5 Offensive Hacking 10 Authchip Count 2 Item Schematics ----------------- Imp. Signal Interpreter | -9/Recycling | Hacked Imp. Aluminum Leg | -9/Recycling | Hacked Robot Schematics ------------------ M-13 Machinist | -10/Materials | Hacked Fabricated ------------ Nothing Repaired ---------- Lgt. Assault Rifle | 11% | -10/Materials Seismic Detector | 45% | -10/Materials Lgt. Treads | 72% | -9/Materials | Corrupted Lgt. Treads | 55% | -9/Materials Lgt. Treads | 63% | -9/Materials Autogun | 39% | -9/Materials Lgt. Treads | 55% | -9/Materials Lgt. Treads | 67% | -9/Storage Studied --------- Autogun | -9/Materials | Hacked Rocket Launcher | -9/Materials | Hacked Lgt. EM Pulse Cannon | -9/Materials | Hacked Alien Tech Used ----------------- None Achievements -------------- None Challenges ------------ None Game ------ Seed PulseMatterTrap Manual? 0 Play Time 01:13:12 Cumulative 394.0 hours Start 2025.11.26 @ 22:32:58 End 2025.11.27 @ 14:59:49 Sessions 1 Manual Loads 0 Difficulty Rogue Special Mode None Game No. 263 Rogue 263 Adventurer 0 Explorer 0 Win Type - Total 25 Types 10/0/8/1/1/0/2/1/1/1 Lore% 84 Gallery% 80 Achievement% 69 Wizard Run 0 Options --------- Layout 1 ASCII 0 Keyboard 0 Movement Arrows Keybinds 0 Fullscreen 2 Font 24/Smallcaps Map View 50x35 Zoom Use 0% Tactical HUD 1 Map Filters NONE Filters NONE Steam 1 RUN: 7b09e703-44a3-453b-9ea7-40414e6b7e73